bitfinex-derivatives/quotes_BTCF0:USTF0_20250907
["timestamp","ask_amount","ask_price","bid_price","bid_amount"]
[1757285714804,1.32157483,111280.0,111270.0,0.58209154]
[1757285715205,1.32157483,111280.0,111270.0,0.46898483]
[1757285715411,0.35,111280.0,111270.0,0.46898483]
[1757285715606,1.16604,111280.0,111270.0,0.58209154]
[1757285715802,1.32157483,111280.0,111270.0,0.58209154]
[1757285716214,1.16604,111280.0,111270.0,0.58209154]
[1757285716411,0.35,111280.0,111270.0,0.58209154]
[1757285716715,1.16604,111280.0,111270.0,0.58209154]
[1757285717815,1.32157483,111280.0,111270.0,0.58209154]
[1757285718111,0.50553483,111280.0,111270.0,0.58209154]
[1757285718313,1.32157483,111280.0,111270.0,0.58209154]
[1757285720116,1.16604,111280.0,111270.0,0.58209154]
[1757285720418,0.35,111280.0,111270.0,0.58209154]
[1757285720616,0.35,111280.0,111270.0,0.82749027]
[1757285720819,0.35,111280.0,111270.0,0.71438356]
[1757285721020,0.343,111280.0,111270.0,0.71438356]
[1757285721316,0.343,111280.0,111270.0,1.53038356]
[1757285721317,0.336,111280.0,111270.0,1.53038356]
[1757285721818,0.322,111280.0,111270.0,1.53038356]
[1757285722818,0.07347989,111300.0,111280.0,0.0898499]
[1757285723020,0.38347989,111300.0,111290.0,0.30377268]
[1757285723323,0.40582989,111300.0,111290.0,0.19098483]
[1757285724619,0.40582989,111300.0,111290.0,0.19198483]
[1757285725418,0.56136472,111300.0,111290.0,0.19198483]
[1757285726218,0.56136472,111300.0,111290.0,0.30577268]
[1757285741130,0.40582989,111300.0,111290.0,0.30577268]
[1757285741330,0.56136472,111300.0,111290.0,0.30577268]
[1757285742031,0.40582989,111300.0,111290.0,0.30577268]
[1757285742230,0.56136472,111300.0,111290.0,0.30577268]
[1757285745233,0.56136472,111300.0,111290.0,0.39562038]
[1757285745234,0.33245,111300.0,111290.0,0.39562038]
[1757285745434,0.3101,111300.0,111290.0,0.53283253]
[1757285746338,0.3101,111300.0,111290.0,0.5327322]
[1757285749341,0.33153,111300.0,111290.0,0.5327322]
[1757285749735,0.33153,111300.0,111290.0,0.4428845]
[1757285750135,0.33153,111300.0,111290.0,0.60348818]
[1757285750339,0.33153,111300.0,111290.0,0.35348818]
[1757285757248,0.33153,111300.0,111290.0,0.1928845]
[1757285762252,0.3101,111300.0,111290.0,0.5327322]
[1757285763057,0.3101,111300.0,111290.0,0.69333588]
[1757285763550,0.14020784,111300.0,111290.0,0.69333588]
[1757285763751,0.3501,111300.0,111290.0,0.5327322]
[1757285764454,0.3501,111300.0,111290.0,0.69400634]
[1757285766557,0.3701,111300.0,111290.0,0.69400634]
[1757285768960,0.39282,111300.0,111290.0,1.51004634]
[1757285769755,0.39282,111300.0,111290.0,1.42019864]
[1757285770052,0.39282,111300.0,111290.0,1.51004634]
[1757285770961,0.39282,111300.0,111290.0,1.3487722]
[1757285773062,0.3701,111300.0,111290.0,1.3487722]
[1757285777263,0.0001,111300.0,111290.0,1.3487722]
[1757285779566,0.0001,111300.0,111290.0,1.5042067]
[1757285780166,0.0001,111310.0,111300.0,0.08984]
[1757285780365,0.36,111310.0,111300.0,0.59690417]
[1757285781264,0.36,111310.0,111300.0,0.44146967]
[1757285781466,0.38272,111310.0,111300.0,1.17598967]
[1757285782066,0.38272,111310.0,111300.0,1.26582967]
[1757285782664,0.38272,111310.0,111300.0,1.27282967]
[1757285784370,0.38272,111310.0,111300.0,1.28882967]
[1757285784563,0.38272,111310.0,111300.0,1.29382967]
[1757285787370,0.36,111310.0,111300.0,1.29382967]
[1757285790673,0.36,111310.0,111300.0,1.44926417]
[1757285792974,0.36,111310.0,111300.0,1.29382967]
[1757285795289,0.36,111310.0,111300.0,1.20398967]
[1757285796291,0.36,111310.0,111300.0,1.29382977]
[1757285799791,0.36,111310.0,111300.0,1.2880191]
[1757285801496,0.36,111310.0,111300.0,1.44941547]
[1757285803894,0.36,111310.0,111300.0,0.88731]
[1757285804096,0.36,111310.0,111300.0,1.2041492]
[1757285804997,0.36,111310.0,111300.0,1.0427445]
[1757285806999,0.38193,111310.0,111300.0,1.0410245]
[1757285808309,0.38193,111310.0,111300.0,1.19640706]
[1757285810705,0.36,111310.0,111300.0,1.19640706]
[1757285812801,0.36,111310.0,111300.0,0.88559]
[1757285813006,0.36,111310.0,111300.0,1.19640706]
[1757285813605,0.38193,111310.0,111300.0,0.06295]
[1757285813904,0.38193,111310.0,111300.0,1.19560706]
[1757285814904,0.36,111310.0,111300.0,1.19560706]
[1757285824309,0.53733853,111310.0,111300.0,0.88391]
[1757285824612,0.53733853,111310.0,111300.0,1.20113454]
[1757285824804,0.53733853,111310.0,111300.0,1.20562454]
[1757285825408,0.53733853,111310.0,111300.0,1.36103307]
[1757285826109,0.53733853,111310.0,111300.0,1.04412853]
[1757285826310,0.53733853,111310.0,111300.0,0.88872]
[1757285826512,0.53733853,111310.0,111300.0,1.19953706]
[1757285828210,0.53733853,111310.0,111300.0,1.36103333]
[1757285831713,0.53733853,111310.0,111300.0,1.05021627]
[1757285831913,0.53733853,111310.0,111300.0,1.36103333]
[1757285832712,0.38193,111310.0,111300.0,1.36103333]
[1757285832918,0.53733853,111310.0,111300.0,1.36103333]
[1757285836916,0.38193,111310.0,111300.0,1.36103333]
[1757285837615,0.38193,111310.0,111300.0,1.47408657]
[1757285837819,0.38193,111310.0,111300.0,1.3125903]
[1757285840419,0.38193,111310.0,111300.0,1.47408657]
[1757285840619,0.38193,111310.0,111300.0,1.36103333]
[1757285845027,0.38193,111310.0,111300.0,1.19953706]
[1757285846028,0.36,111310.0,111300.0,1.19953706]
[1757285846726,0.36,111310.0,111300.0,1.28937736]
[1757285847527,0.36,111310.0,111300.0,1.45087125]
[1757285848417,0.36,111310.0,111300.0,1.14005419]
[1757285848627,0.36,111310.0,111300.0,1.45087125]
[1757285849725,0.36,111310.0,111300.0,1.36103095]
[1757285851331,0.36,111310.0,111300.0,1.45087125]
[1757285852331,0.36,111310.0,111300.0,1.28937736]
[1757285852830,0.36,111310.0,111300.0,1.53937736]
[1757285856228,0.36,111310.0,111300.0,0.71809736]
[1757285856435,0.36,111310.0,111300.0,1.44733706]
[1757285859334,0.36,111310.0,111300.0,1.28717736]
[1757285859634,0.36,111310.0,111300.0,0.46809736]
[1757285859834,0.36,111310.0,111300.0,1.19733706]
[1757285862339,0.36,111310.0,111300.0,0.37825706]
[1757285862633,0.36,111310.0,111300.0,1.19717706]
[1757285864437,0.38179,111310.0,111300.0,0.37825706]
[1757285864641,0.38179,111310.0,111300.0,1.04160853]
[1757285864642,0.53719853,111310.0,111300.0,1.04160853]
[1757285865936,0.53719853,111310.0,111300.0,0.22284853]
[1757285866138,0.38179,111310.0,111300.0,1.04160853]
[1757285866643,0.38179,111310.0,111300.0,1.19701706]
[1757285867643,0.38179,111310.0,111300.0,0.22284853]
[1757285867644,0.78719853,111310.0,111300.0,0.22284853]
[1757285867843,0.78719853,111310.0,111300.0,1.04152853]
[1757285868145,0.78719853,111310.0,111300.0,1.2030138]
[1757285868544,0.63179,111310.0,111300.0,1.2030138]
[1757285868744,0.63179,111310.0,111300.0,1.35842233]
[1757285870043,0.63179,111310.0,111300.0,1.2030138]
[1757285870433,0.63179,111310.0,111300.0,1.2030311]
[1757285870638,0.63179,111310.0,111300.0,0.3843511]
[1757285870943,0.64003,111310.0,111300.0,1.04832527]
[1757285871134,0.63179,111310.0,111300.0,1.04832527]
[1757285872144,0.63179,111310.0,111300.0,1.2037511]
[1757285876049,0.63179,111310.0,111300.0,1.04226583]
[1757285878250,0.63179,111310.0,111300.0,1.20378728]
[1757285878952,0.63179,111310.0,111300.0,1.04226583]
[1757285879152,0.63179,111310.0,111300.0,1.20378419]
[1757285879446,0.38179,111310.0,111300.0,1.60921002]
[1757285879651,0.36,111310.0,111300.0,1.60921002]
[1757285880053,0.36,111310.0,111300.0,1.44769166]
[1757285881454,0.36,111310.0,111300.0,1.53753196]
[1757285881750,0.36,111310.0,111300.0,1.69904529]
[1757285881943,0.14,111310.0,111300.0,1.69904529]
[1757285882450,0.14,111310.0,111300.0,1.81209365]
[1757285882651,0.14,111310.0,111300.0,1.65058032]
[1757285883053,0.14,111310.0,111300.0,1.53753196]
[1757285887057,0.14,111310.0,111300.0,1.74696749]
[1757285887858,0.14,111310.0,111300.0,1.90843918]
[1757285888153,0.14,111310.0,111300.0,1.69900365]
[1757285888857,0.0002,111320.0,111310.0,0.03665]
[1757285889055,0.0002,111320.0,111310.0,0.30510227]
[1757285889056,0.34,111320.0,111310.0,0.30510227]
[1757285890256,0.34,111320.0,111310.0,0.32802256]
[1757285890449,0.34,111320.0,111310.0,0.33251256]
[1757285890850,0.34,111320.0,111310.0,0.21948612]
[1757285891058,0.34,111320.0,111310.0,0.21761169]
[1757285891358,0.34,111320.0,111310.0,0.38103752]
[1757285892861,0.34,111320.0,111310.0,0.37403752]
[1757285893062,0.34,111320.0,111310.0,0.38603752]
[1757285895067,0.34,111320.0,111310.0,0.22456583]
[1757285895366,0.34,111320.0,111310.0,0.34672045]
[1757285896769,0.34,111320.0,111310.0,0.22456583]
[1757285898367,0.34,111320.0,111310.0,0.72586972]
[1757285898669,0.083,111320.0,111310.0,0.72586972]
[1757285898867,0.0002,111330.0,111310.0,0.72586972]
[1757285899168,0.3502,111330.0,111320.0,1.17102752]
[1757285899469,0.35,111330.0,111320.0,1.19183037]
[1757285900969,0.35,111330.0,111320.0,1.19783037]
[1757285901369,0.35,111330.0,111320.0,1.20583037]
[1757285902772,0.35,111330.0,111320.0,1.3612562]
[1757285902977,0.0002,111340.0,111330.0,0.01339]
[1757285903176,0.36,111340.0,111330.0,0.34750166]
[1757285903774,0.38187,111340.0,111330.0,0.34750166]
[1757285904174,0.38187,111340.0,111330.0,0.34850166]
[1757285904577,0.38187,111340.0,111330.0,0.34950166]
[1757285904774,0.38187,111340.0,111330.0,0.03865]
[1757285904975,0.38187,111340.0,111330.0,0.19407583]
[1757285908482,0.38187,111340.0,111330.0,0.03865]
[1757285908774,0.38187,111340.0,111330.0,0.19407583]
[1757285910585,0.38187,111340.0,111330.0,0.03865]
[1757285910884,0.38187,111340.0,111330.0,0.19407583]
[1757285913685,0.38187,111340.0,111330.0,0.03865]
[1757285913987,0.38187,111340.0,111330.0,0.19407583]
[1757285914683,0.38187,111340.0,111330.0,0.19856583]
[1757285918484,0.38187,111340.0,111330.0,1.01568583]
[1757285921894,0.38187,111340.0,111330.0,0.86026]
[1757285922190,0.38187,111340.0,111330.0,1.01568583]
[1757285922691,0.37187,111340.0,111330.0,1.01568583]
[1757285922989,0.37187,111340.0,111330.0,0.04314]
[1757285923192,0.38544,111340.0,111330.0,1.01576583]
[1757285923590,0.38544,111340.0,111330.0,0.36003752]
[1757285923797,0.37187,111340.0,111330.0,1.17727752]
[1757285924096,0.37187,111340.0,111330.0,0.36003752]
[1757285924292,0.37187,111340.0,111330.0,1.17727752]
[1757285925598,0.37187,111340.0,111330.0,0.36003752]
[1757285925791,0.38544,111340.0,111330.0,1.17715752]
[1757285925993,0.54086583,111340.0,111330.0,1.00830169]
[1757285927096,0.38544,111340.0,111330.0,1.16372752]
[1757285927996,0.38544,111340.0,111330.0,0.34664752]
[1757285932300,0.54079687,111340.0,111330.0,0.34657856]
[1757285932699,0.54079687,111340.0,111330.0,0.19122169]
[1757285932900,0.54079687,111340.0,111330.0,0.34657856]
[1757285937407,0.54079687,111340.0,111330.0,0.36017856]
[1757285939905,0.54079687,111340.0,111330.0,0.34657856]
[1757285942504,0.54079687,111340.0,111330.0,0.19122169]
[1757285942705,1.76315374,111340.0,111330.0,0.16796169]
[1757285942912,1.76315374,111340.0,111330.0,0.00649]
[1757285943109,1.76315374,111340.0,111330.0,0.11951731]
[1757285944812,1.76315374,111340.0,111330.0,0.00549]
[1757285945510,1.76315374,111340.0,111330.0,0.11851731]
[1757285945811,1.76315374,111340.0,111330.0,0.11051731]
[1757285946007,0.0337,111320.0,111310.0,0.02176]
[1757285946209,0.55905687,111320.0,111310.0,0.02166]
[1757285946513,0.55905687,111320.0,111310.0,0.17701687]
[1757285947011,0.55905687,111320.0,111300.0,0.3776551]
[1757285947012,0.03559,111310.0,111300.0,0.3776551]
[1757285947310,0.56094687,111310.0,111300.0,0.3776551]
[1757285947605,0.40559,111310.0,111300.0,0.3776551]
[1757285947810,0.39277,111310.0,111300.0,0.53301197]
[1757285948710,0.39277,111310.0,111300.0,0.54101197]
[1757285949415,0.39277,111310.0,111300.0,0.54701197]
[1757285952603,0.40193427,111310.0,111300.0,0.54701197]
[1757285956115,0.39277,111310.0,111300.0,0.54701197]
[1757285956717,0.34277,111310.0,111300.0,0.54701197]
[1757285956918,0.02277,111310.0,111300.0,0.54701197]
[1757285957114,0.36277,111310.0,111300.0,0.54701197]
[1757285958719,0.36277,111310.0,111300.0,0.23629823]
[1757285959017,0.36277,111310.0,111300.0,0.54701197]
[1757285960614,0.36277,111310.0,111300.0,0.23629823]
[1757285960918,0.3716041,111310.0,111300.0,0.54252197]
[1757285962322,0.36277,111310.0,111300.0,0.54252197]
[1757285963525,0.02277,111310.0,111300.0,0.23180823]
[1757285963722,0.33277,111310.0,111300.0,0.54252197]
[1757285964725,0.33277,111310.0,111300.0,0.23180823]
[1757285964926,0.33277,111310.0,111300.0,0.54252197]
[1757285971028,0.02277,111310.0,111300.0,0.54252197]
[1757285971328,0.40277,111310.0,111300.0,0.54252197]
[1757285972425,0.02277,111310.0,111300.0,0.54252197]
[1757285972630,0.39277,111310.0,111300.0,0.54252197]
[1757285972832,0.39277,111310.0,111300.0,0.38105028]
[1757285973933,0.39277,111310.0,111300.0,0.38554028]
[1757285974439,0.39277,111310.0,111300.0,0.07482654]
[1757285974629,0.39277,111310.0,111300.0,0.38554028]
[1757285974942,0.02277,111310.0,111300.0,0.38554028]
[1757285984037,0.34277,111310.0,111300.0,0.38554028]
[1757285985043,0.34277,111310.0,111300.0,0.38105028]
[1757285986144,0.34277,111310.0,111300.0,0.38554028]
[1757285991247,0.34277,111310.0,111300.0,0.36466374]
[1757285992356,0.34277,111310.0,111300.0,0.20936021]
[1757285993150,0.34277,111310.0,111300.0,0.37098295]
[1757285995638,0.34277,111310.0,111300.0,0.20936021]
[1757285997144,0.34277,111310.0,111300.0,0.05395]
[1757285997652,0.34277,111310.0,111300.0,0.20936021]
[1757286000355,0.34277,111310.0,111300.0,0.05395]
[1757286000556,0.34277,111310.0,111300.0,0.20936021]
[1757286002545,0.34277,111310.0,111300.0,0.36477042]
[1757286002753,0.32,111310.0,111300.0,0.70461132]
[1757286002950,0.32,111310.0,111300.0,0.30395]
[1757286003259,0.32,111310.0,111300.0,0.70461132]
[1757286003658,0.02267484,111320.0,111310.0,0.03567]
[1757286003854,0.02247484,111320.0,111310.0,0.19108021]
[1757286004157,0.00013484,111320.0,111310.0,1.09783311]
[1757286004551,0.00013484,111320.0,111310.0,1.55726864]
[1757286004855,0.00013484,111320.0,111310.0,1.55826864]
[1757286005760,0.00013484,111320.0,111310.0,1.34883311]
[1757286005959,0.00013484,111320.0,111310.0,1.34983311]
[1757286008162,0.00013484,111320.0,111310.0,0.53291311]
[1757286008565,0.00013484,111320.0,111310.0,1.01028021]
[1757286008566,0.38247484,111320.0,111310.0,1.01028021]
[1757286008862,0.00013484,111320.0,111310.0,1.26135334]
[1757286009457,0.00013484,111320.0,111310.0,1.01028021]
[1757286010564,0.00013484,111320.0,111310.0,1.10011391]
[1757286011157,0.00013484,111320.0,111310.0,1.35011391]
[1757286011356,0.00013484,111320.0,111310.0,1.35460391]
[1757286014164,0.00013484,111320.0,111310.0,1.56403944]
[1757286016166,0.0002,111330.0,111310.0,1.56403944]
[1757286016167,0.0002,111330.0,111320.0,0.1254961]
[1757286016364,0.0002,111340.0,111330.0,0.03567]
[1757286016564,0.02254,111350.0,111340.0,0.03567]
[1757286016861,0.35152795,111350.0,111340.0,0.30384805]
[1757286018068,0.35352795,111350.0,111340.0,0.30384805]
[1757286018670,0.35152795,111350.0,111340.0,0.30384805]
[1757286019067,0.51948816,111350.0,111340.0,0.11276784]
[1757286019569,0.52048816,111350.0,111340.0,0.13518784]
[1757286020476,0.51948816,111350.0,111340.0,0.13518784]
[1757286023374,0.51948816,111350.0,111340.0,0.11276784]
[1757286023570,0.51948816,111350.0,111340.0,0.13518784]
[1757286024470,0.36407795,111350.0,111340.0,0.13518784]
[1757286024666,0.51948816,111350.0,111340.0,0.14843784]
[1757286024971,1.33676816,111350.0,111340.0,0.14843784]
[1757286025275,1.33676816,111350.0,111340.0,0.13518784]
[1757286026571,1.18135795,111350.0,111340.0,0.13518784]
[1757286026782,1.33676816,111350.0,111340.0,0.14843784]
[1757286027077,1.32461816,111350.0,111340.0,0.14843784]
[1757286027270,1.16920795,111350.0,111340.0,0.14843784]
[1757286027577,1.16920795,111350.0,111340.0,0.15292784]
[1757286028979,0.35152795,111350.0,111340.0,0.15292784]
[1757286029179,1.16924795,111350.0,111340.0,0.15292784]
[1757286030280,0.35152795,111350.0,111340.0,0.30833805]
[1757286030578,1.16904795,111350.0,111340.0,0.30833805]
[1757286032082,0.35152795,111350.0,111340.0,0.15292784]
[1757286032277,0.34234,111350.0,111340.0,0.30833805]
[1757286032581,0.34234,111350.0,111340.0,0.19557021]
[1757286033280,0.32,111350.0,111340.0,0.56421365]
[1757286033476,0.32,111350.0,111340.0,0.80943386]
[1757286034074,0.32,111350.0,111340.0,0.64833405]
[1757286034475,0.32,111350.0,111340.0,0.55852405]
[1757286036182,0.32,111350.0,111340.0,0.40311384]
[1757286036380,0.32,111350.0,111340.0,0.55852405]
[1757286037083,0.15017564,111350.0,111340.0,0.55852405]
[1757286037282,0.32,111350.0,111340.0,0.71962386]
[1757286037488,0.32,111350.0,111340.0,0.60667002]
[1757286038282,0.32,111350.0,111340.0,0.69647992]
[1757286038880,0.32,111350.0,111340.0,0.53538011]
[1757286039180,0.37,111350.0,111340.0,0.53538011]
[1757286039379,0.37,111350.0,111340.0,0.28538011]
[1757286040186,0.37,111350.0,111340.0,0.44644325]
[1757286040480,0.05,111350.0,111340.0,0.44644325]
[1757286040686,0.36,111350.0,111340.0,0.44644325]
[1757286041986,0.05,111350.0,111340.0,0.28538011]
[1757286042187,0.05,111350.0,111340.0,0.44639251]
[1757286042984,0.02297,111350.0,111340.0,0.35658261]
[1757286043282,0.65297,111350.0,111340.0,0.46927827]
[1757286043488,0.66552,111350.0,111340.0,0.30061806]
[1757286043988,0.66552,111350.0,111340.0,0.02691]
[1757286044188,0.66552,111350.0,111340.0,0.04031191]
[1757286044591,0.82093021,111350.0,111340.0,0.04031191]
[1757286044791,0.82093021,111350.0,111340.0,0.01789191]
[1757286045491,0.82093021,111350.0,111340.0,0.1306481]
[1757286045690,0.82093021,111350.0,111340.0,0.1522281]
[1757286046389,0.66552,111350.0,111340.0,0.1522281]
[1757286046590,0.82093021,111350.0,111340.0,0.1522281]
[1757286047794,0.66552,111350.0,111340.0,0.32110831]
[1757286048197,0.66552,111350.0,111340.0,0.20835212]
[1757286048493,0.66552,111350.0,111340.0,0.22896969]
[1757286049299,0.65297,111350.0,111340.0,0.22896969]
[1757286049592,0.40297,111350.0,111340.0,0.22896969]
[1757286053699,0.40297,111350.0,111340.0,0.07355948]
[1757286053996,0.40297,111350.0,111340.0,0.22896969]
[1757286054294,0.40297,111350.0,111340.0,0.38420056]
[1757286056200,0.40297,111350.0,111340.0,0.07355948]
[1757286056496,0.40297,111350.0,111340.0,0.38420056]
[1757286056898,0.40297,111350.0,111340.0,0.54521296]
[1757286058396,0.40297,111350.0,111340.0,0.53181105]
[1757286058601,0.40297,111350.0,111340.0,0.54880421]
[1757286059501,0.40297,111350.0,111340.0,0.54580421]
[1757286060097,0.40297,111350.0,111340.0,0.54680421]
[1757286063601,0.40297,111350.0,111340.0,0.23616313]
[1757286063805,0.40297,111350.0,111340.0,0.54680421]
[1757286064200,0.40297,111350.0,111340.0,0.23616313]
[1757286064400,0.38,111350.0,111340.0,0.57597333]
[1757286064600,0.02189,111360.0,111350.0,0.03486]
[1757286064906,0.36169,111360.0,111350.0,0.04785316]
[1757286065101,0.36169,111360.0,111350.0,0.2031737]
[1757286066209,0.37262,111360.0,111350.0,0.2076637]
[1757286066600,0.36169,111360.0,111350.0,0.2076637]
[1757286067300,0.36169,111360.0,111350.0,0.2086637]
[1757286068513,0.36169,111360.0,111350.0,0.2096637]
[1757286069105,0.36169,111360.0,111350.0,0.05434316]
[1757286069308,0.36169,111360.0,111350.0,0.36498424]
[1757286069508,0.36169,111360.0,111350.0,0.2096637]
[1757286070411,0.36169,111360.0,111350.0,0.36498424]
[1757286071212,0.36169,111360.0,111350.0,0.2096637]
[1757286074112,0.36169,111360.0,111350.0,0.19667054]
[1757286074614,0.36169,111360.0,111350.0,0.51300348]
[1757286075007,0.36169,111360.0,111350.0,0.2023624]
[1757286075207,0.36169,111360.0,111350.0,0.51300348]
[1757286077612,0.36169,111360.0,111350.0,0.35768294]
[1757286079515,0.37262,111360.0,111350.0,0.35768294]
[1757286081016,0.36169,111360.0,111350.0,0.35768294]
[1757286083724,0.36169,111360.0,111350.0,0.2023624]
[1757286084010,0.36169,111360.0,111350.0,0.35768294]
[1757286085315,0.36169,111360.0,111350.0,0.2023624]
[1757286085618,0.52794054,111360.0,111350.0,0.1890324]
[1757286085818,0.36169,111360.0,111350.0,0.35768294]
[1757286086722,0.36169,111360.0,111350.0,0.19667054]
[1757286087519,0.36169,111360.0,111350.0,0.35768294]
[1757286088416,0.37262,111360.0,111350.0,0.35768294]
[1757286088617,0.36169,111360.0,111350.0,0.35768294]
[1757286089118,0.37262,111360.0,111350.0,0.35768294]
[1757286089319,0.36169,111360.0,111350.0,0.35768294]
[1757286093321,0.19187195,111360.0,111350.0,0.35768294]
[1757286093522,0.21510195,111360.0,111350.0,0.35768294]
[1757286093722,0.21510195,111360.0,111350.0,0.51300348]
[1757286098926,0.21510195,111360.0,111350.0,0.2023624]
[1757286099325,0.21510195,111360.0,111350.0,0.35768294]
[1757286099730,0.21510195,111360.0,111350.0,0.2023624]
[1757286100029,0.21510195,111360.0,111350.0,0.35768294]
[1757286101230,0.21510195,111360.0,111350.0,0.51300348]
[1757286104132,0.21510195,111360.0,111350.0,0.5260346]
[1757286104432,0.21510195,111360.0,111350.0,0.21539352]
[1757286104626,0.21510195,111360.0,111350.0,0.37071406]
[1757286105730,0.21510195,111360.0,111350.0,0.37071441]
[1757286107631,0.21510195,111360.0,111350.0,0.37071371]
[1757286111235,0.21510195,111360.0,111350.0,0.37071314]
[1757286113331,0.46510195,111360.0,111350.0,0.2020626]
[1757286113537,0.62042249,111360.0,111350.0,0.33585314]
[1757286113833,0.62042249,111360.0,111350.0,0.47142578]
[1757286114137,0.62042249,111360.0,111350.0,0.31041338]
[1757286114534,0.62042249,111360.0,111350.0,0.19750074]
[1757286116337,0.46510195,111360.0,111350.0,0.19750267]
[1757286117941,0.46510195,111360.0,111350.0,0.0421802]
[1757286118134,0.46510195,111360.0,111350.0,0.0554602]
[1757286118334,0.46510195,111360.0,111350.0,0.21078267]
[1757286119330,0.21510195,111360.0,111350.0,0.21078267]
[1757286119837,0.19187195,111360.0,111350.0,0.30058577]
[1757286120743,0.19187195,111360.0,111350.0,0.37179507]
[1757286121540,0.19187195,111360.0,111350.0,0.21078267]
[1757286122043,0.19187195,111360.0,111350.0,0.19775247]
[1757286122244,0.19187195,111360.0,111350.0,0.35876487]
[1757286122846,0.19187195,111360.0,111350.0,0.52297989]
[1757286123046,0.19187195,111360.0,111350.0,0.35307494]
[1757286123745,0.19187195,111360.0,111350.0,0.52292407]
[1757286124042,0.19187195,111360.0,111350.0,0.86272717]
[1757286124250,0.19187195,111360.0,111350.0,0.4534424]
[1757286124442,0.19187195,111360.0,111350.0,0.76408734]
[1757286125644,0.21362195,111360.0,111350.0,0.60876487]
[1757286126045,0.19187195,111360.0,111350.0,0.60876487]
[1757286126345,0.21362195,111360.0,111350.0,0.35876487]
[1757286127037,0.21362195,111360.0,111350.0,0.19775247]
[1757286130050,0.21362195,111360.0,111350.0,0.31051699]
[1757286131256,0.21362195,111360.0,111350.0,0.04243]
[1757286131554,0.21362195,111360.0,111350.0,0.31051068]
[1757286134455,0.21362195,111360.0,111350.0,0.19775247]
[1757286136059,0.21362195,111360.0,111350.0,0.35876487]
[1757286138164,0.21362195,111360.0,111350.0,0.2034424]
[1757286138464,0.21362195,111360.0,111350.0,0.35876487]
[1757286139363,0.21362195,111360.0,111350.0,0.2034424]
[1757286139564,0.21362195,111360.0,111350.0,0.35876487]
[1757286148070,0.21362195,111360.0,111350.0,0.2034424]
[1757286148274,0.21362195,111360.0,111350.0,0.35876487]
[1757286151375,0.21362195,111360.0,111350.0,1.19024487]
[1757286160179,0.21362195,111360.0,111350.0,1.02923247]
[1757286161778,0.21362195,111360.0,111350.0,0.19775247]
[1757286162081,0.21362195,111360.0,111350.0,0.87255]
[1757286162280,0.21362195,111360.0,111350.0,1.02787247]
[1757286163678,0.21362195,111360.0,111350.0,1.18913314]
[1757286166888,0.21362195,111360.0,111350.0,1.02787247]
[1757286170189,0.21362195,111360.0,111350.0,0.87255]
[1757286170388,0.21362195,111360.0,111350.0,1.02787247]
[1757286174293,0.21362195,111360.0,111350.0,1.18913314]
[1757286174491,0.19187195,111360.0,111350.0,1.27893674]
[1757286174890,0.19187195,111360.0,111350.0,1.43425921]
[1757286175594,0.19187195,111360.0,111350.0,1.27893674]
[1757286176691,0.19187195,111360.0,111350.0,1.11767607]
[1757286177891,0.19187195,111360.0,111350.0,0.28755607]
[1757286178193,0.19187195,111360.0,111350.0,1.11583607]
[1757286178395,0.19187195,111360.0,111350.0,1.27103396]
[1757286180298,0.21465195,111360.0,111350.0,0.35295036]
[1757286180489,0.19187195,111360.0,111350.0,1.18107036]
[1757286181897,0.21465195,111360.0,111350.0,1.18127036]
[1757286182393,0.21465195,111360.0,111350.0,0.35295036]
[1757286182599,0.21465195,111360.0,111350.0,1.18151036]
[1757286185903,0.21465195,111360.0,111350.0,1.18107036]
[1757286186804,0.21465195,111360.0,111350.0,0.35295036]
[1757286187006,0.21465195,111360.0,111350.0,1.18071036]
[1757286188008,0.21465195,111360.0,111350.0,0.35295036]
[1757286188209,0.21465195,111360.0,111350.0,1.18071036]
[1757286194008,0.19187195,111360.0,111350.0,1.18071036]
[1757286205818,0.19187195,111360.0,111350.0,0.86851]
[1757286205819,0.21426195,111360.0,111350.0,0.86851]
[1757286206019,0.21426195,111360.0,111350.0,1.02377018]
[1757286206218,0.21426195,111360.0,111350.0,1.17903036]
[1757286208222,0.19187195,111360.0,111350.0,1.17903036]
[1757286212721,0.19187195,111360.0,111350.0,1.3403519]
[1757286216723,0.04507431,111360.0,111350.0,1.3403519]
[1757286216924,0.04507431,111360.0,111350.0,1.17903036]
[1757286217223,0.35,111360.0,111350.0,1.17903036]
[1757286222038,0.09,111360.0,111350.0,1.17903036]
[1757286222337,0.321,111360.0,111350.0,1.17903036]
[1757286224137,0.321,111360.0,111350.0,1.34035596]
[1757286224337,0.321,111360.0,111350.0,1.04301269]
[1757286224539,0.321,111360.0,111350.0,1.35353305]
[1757286225231,0.321,111360.0,111350.0,0.52745305]
[1757286225534,0.321,111360.0,111350.0,1.35145305]
[1757286228140,0.321,111360.0,111350.0,0.52745305]
[1757286228340,0.321,111360.0,111350.0,1.35117305]
[1757286229040,0.321,111360.0,111350.0,0.52745305]
[1757286229240,0.321,111360.0,111350.0,1.35117305]
[1757286229931,0.321,111360.0,111350.0,0.52745305]
[1757286230140,0.321,111360.0,111350.0,1.35093305]
[1757286234240,0.321,111360.0,111350.0,1.04041269]
[1757286234843,0.321,111360.0,111350.0,1.35093305]
[1757286235344,0.321,111360.0,111350.0,0.21693269]
[1757286235543,0.321,111360.0,111350.0,1.35045305]
[1757286235945,0.321,111360.0,111350.0,1.03993269]
[1757286236139,0.321,111360.0,111350.0,0.52745305]
[1757286236439,0.321,111360.0,111350.0,1.35037305]
[1757286237847,0.321,111360.0,111350.0,1.03985269]
[1757286238041,0.321,111360.0,111350.0,1.35037305]
[1757286240347,0.321,111360.0,111350.0,1.19513642]
[1757286242448,0.321,111360.0,111350.0,0.37221642]
[1757286242649,0.321,111360.0,111350.0,1.19477642]
[1757286246953,0.321,111360.0,111350.0,0.21693269]
[1757286246954,0.571,111360.0,111350.0,0.21693269]
[1757286247148,0.73373373,111360.0,111350.0,0.18099269]
[1757286247656,0.73373373,111360.0,111350.0,0.11946614]
[1757286247859,0.57845,111360.0,111350.0,0.11946614]
[1757286248354,0.57845,111360.0,111350.0,0.00649]
[1757286249366,0.73373373,111360.0,111350.0,0.00649]
[1757286252662,0.73373373,111360.0,111350.0,0.02843]
[1757286253061,0.57845,111360.0,111350.0,0.02843]
[1757286253262,0.57845,111360.0,111350.0,0.00649]
[1757286254673,0.571,111360.0,111350.0,0.19738373]